bitfinex-derivatives/quotes_BNBF0:USTF0_20250128
["timestamp","ask_amount","ask_price","bid_price","bid_amount"]
[1738045798377,0.24233737,682.25,680.95,0.29370732]
[1738045799076,0.29315196,682.24,680.95,0.29370732]
[1738045799276,0.24233737,682.23,680.95,0.29370732]
[1738045799473,0.53549363,682.23,680.95,0.29370732]
[1738045799675,0.24233737,682.22,680.95,0.29370732]
[1738045810384,1.09456444,682.18,680.95,0.29370732]
[1738045814583,0.24233737,682.22,680.95,0.29370732]
[1738045819489,0.29315626,682.23,680.96,0.26959455]
[1738045819690,0.29315626,682.23,680.97,0.29369869]
[1738045823288,0.2422739,682.22,680.98,0.26959455]
[1738045823484,0.2422739,682.22,680.99,0.29369006]
[1738045823689,0.2422739,682.22,681.0,0.26959455]
[1738045823994,0.2422739,682.22,681.01,0.29368144]
[1738045824293,0.2422739,682.22,681.02,0.26959455]
[1738045824591,0.2422739,682.22,681.03,0.29367281]
[1738045824791,0.2422739,682.22,681.04,0.26959455]
[1738045824993,0.2422739,682.22,681.05,0.29366419]
[1738045825288,0.2422739,682.22,681.06,0.26959455]
[1738045825593,0.2422739,682.22,681.07,0.29365557]
[1738045825792,0.2422739,682.22,681.08,0.26959455]
[1738045826194,0.2422739,682.22,681.09,0.29364694]
[1738045826395,0.2422739,682.22,681.1,0.26959455]
[1738045826689,0.2422739,682.22,681.11,0.29363832]
[1738045826898,0.2422739,682.22,681.12,0.26959455]
[1738045828389,0.29315626,682.23,681.11,0.29363832]
[1738045828593,0.24227015,682.22,681.12,0.26956487]
[1738045828795,0.24227015,682.22,681.13,0.2936297]
[1738045828995,0.24227015,682.22,681.14,0.26956487]
[1738045829195,0.24227015,682.22,681.15,0.29362108]
[1738045829395,0.24227015,682.22,681.16,0.26956487]
[1738045829795,0.29315626,682.23,681.15,0.29362108]
[1738045829998,0.24224298,682.22,681.15,0.29362108]
[1738045830197,0.29315626,682.23,681.15,0.29362108]
[1738045838698,0.24223864,682.22,681.15,0.29362108]
[1738045838897,0.29315626,682.23,681.15,0.29362108]
[1738045847203,1.09456444,682.57,681.15,0.29362108]
[1738045847407,0.24225953,682.56,681.15,0.29362108]
[1738045848110,0.24225803,682.55,681.15,0.29362108]
[1738045848309,0.24225803,682.54,681.16,0.26954331]
[1738045848509,0.24225803,682.53,681.17,0.29361246]
[1738045848712,0.24225803,682.56,681.18,0.26954331]
[1738045848911,0.24225803,682.55,681.19,0.29360384]
[1738045849112,0.24225803,682.56,681.2,0.26954331]
[1738045849315,0.24225803,682.55,681.21,0.29359522]
[1738045849510,0.24225803,682.56,681.22,0.26954331]
[1738045849710,0.24225803,682.55,681.22,0.56313422]
[1738045849914,1.09456444,682.57,681.22,0.29359091]
[1738045850113,0.24226869,682.56,681.23,0.26953385]
[1738045850512,0.24226869,682.55,681.23,0.26953385]
[1738045850713,0.24226869,682.59,681.23,0.26953385]
[1738045851014,0.24226869,682.58,681.23,0.26953385]
[1738045851214,0.24226869,682.57,681.23,0.26953385]
[1738045851414,0.24226869,682.59,681.23,0.26953385]
[1738045851714,0.24226869,682.58,681.22,0.29359091]
[1738045851914,0.24226869,682.57,681.22,0.29359091]
[1738045852108,1.09456444,682.6,681.22,0.29359091]
[1738045852109,0.24226869,682.59,681.22,0.29359091]
[1738045852313,0.24226869,682.58,681.22,0.29359091]
[1738045852613,0.24226869,682.57,681.22,0.29359091]
[1738045852814,0.24226869,682.56,681.22,0.29359091]
[1738045853015,0.24226869,682.59,681.22,0.29359091]
[1738045853316,1.09456444,682.31,681.22,0.29359091]
[1738045853614,1.09456444,682.31,681.22,1.38726062]
[1738045853813,0.24226007,682.3,681.22,1.38726062]
[1738045856314,0.24226007,682.3,681.22,0.29359091]
[1738045856615,0.24226007,682.29,681.22,0.29359091]
[1738045856811,0.24226007,682.4,681.22,0.29359091]
[1738045857011,1.09456444,682.41,681.22,0.29359091]
[1738045857212,0.24226603,682.4,681.22,0.29359091]
[1738045858715,1.09456444,682.41,681.22,0.29359091]
[1738045858916,0.24226371,682.4,681.22,0.29359091]
[1738045859714,0.24226371,682.44,681.22,0.29359091]
[1738045859915,0.24226371,682.43,681.22,0.29359091]
[1738045860113,0.24226371,682.44,681.22,0.29359091]
[1738045860313,0.24226371,682.43,681.22,0.29359091]
[1738045860514,0.24226371,682.44,681.22,0.29359091]
[1738045860718,0.24226371,682.43,681.22,0.29359091]
[1738045861019,0.24226371,682.42,681.22,0.29359091]
[1738045861214,0.24226371,682.44,681.22,0.29359091]
[1738045861416,1.09456444,682.45,681.22,0.29359091]
[1738045861417,0.24226371,682.43,681.22,0.29359091]
[1738045861618,0.24226371,682.42,681.22,0.29359091]
[1738045861815,0.24226371,682.44,681.22,0.29359091]
[1738045862018,0.24227073,682.43,681.22,0.29359091]
[1738045862217,0.24227073,682.42,681.22,0.29359091]
[1738045862420,0.24227073,682.41,681.22,0.29359091]
[1738045862621,0.24227073,682.4,681.22,0.29359091]
[1738045862822,0.24227073,682.39,681.22,0.29359091]
[1738045863019,0.24227073,682.44,681.22,0.29359091]
[1738045863222,0.24227073,682.43,681.22,0.29359091]
[1738045863419,0.24227073,682.49,681.22,0.29359091]
[1738045863619,0.24227073,682.48,681.22,0.29359091]
[1738045863823,0.24227073,682.49,681.22,0.29359091]
[1738045864023,0.24227073,682.48,681.22,0.29359091]
[1738045864223,0.24227073,682.49,681.22,0.29359091]
[1738045864419,0.24227073,682.48,681.22,0.29359091]
[1738045864617,0.24228696,682.47,681.22,0.29359091]
[1738045864822,0.24228696,682.49,681.22,0.29359091]
[1738045865020,0.24228696,682.48,681.22,0.29359091]
[1738045865221,0.24228696,682.49,681.22,0.29359091]
[1738045865421,0.24228696,682.48,681.22,0.29359091]
[1738045865619,0.24228696,682.49,681.22,0.29359091]
[1738045865819,0.24228696,682.48,681.22,0.29359091]
[1738045866025,0.24233722,682.47,681.22,0.29359091]
[1738045866224,0.24233722,682.46,681.22,0.29359091]
[1738045866525,0.24233722,682.45,681.22,0.29359091]
[1738045866725,0.24233722,682.48,681.22,0.29359091]
[1738045866939,0.24233722,682.47,681.22,0.29359091]
[1738045867125,0.24233722,682.48,681.22,0.29359091]
[1738045867325,1.09456444,682.49,681.22,0.29359091]
[1738045867526,0.24231874,682.48,681.22,0.29359091]
[1738045868927,1.09456444,682.47,681.22,0.29359091]
[1738045869120,0.24231874,682.46,681.22,0.29359091]
[1738045872332,1.09456444,682.44,681.22,0.29359091]
[1738045872631,0.24231874,682.43,681.22,0.29359091]
[1738045875532,1.09456444,682.39,681.22,0.29359091]
[1738045875733,0.24231874,682.38,681.22,0.29359091]
[1738045876432,0.24230557,682.37,681.22,0.29359091]
[1738045876732,0.24230557,682.36,681.22,0.29359091]
[1738045877031,0.24230557,682.35,681.22,0.29359091]
[1738045877232,0.24230557,682.38,681.22,0.29359091]
[1738045877429,0.24230557,682.37,681.22,0.29359091]
[1738045877629,0.24230557,682.36,681.22,0.29359091]
[1738045877829,0.24230557,682.35,681.22,0.29359091]
[1738045878029,0.24230557,682.38,681.22,0.29359091]
[1738045878231,1.09456444,682.39,681.22,0.29359091]
[1738045878232,0.24229739,682.37,681.22,0.29359091]
[1738045878432,0.24229739,682.38,681.22,0.29359091]
[1738045878634,1.09456444,682.36,681.22,0.29359091]
[1738045878833,0.24229739,682.35,681.22,0.29359091]
[1738045879833,0.24229739,682.35,681.23,0.26955442]
[1738045880432,0.24229739,682.35,681.22,0.29359091]
[1738045881741,1.09456444,682.36,681.22,0.29359091]
[1738045881941,1.09456444,682.23,681.24,1.09366971]
[1738045884841,1.09456444,682.5,681.22,0.29359091]
[1738045885038,0.53531076,682.49,681.22,0.29359091]
[1738045885239,0.29304888,682.48,681.22,0.29359091]
[1738045885438,0.24226618,682.47,681.22,0.29359091]
[1738045890548,0.29304888,682.48,681.22,0.29359091]
[1738045890842,0.24222974,682.47,681.22,0.29359091]
[1738045894350,1.09456444,682.39,681.22,0.29359091]
[1738045894540,0.24222974,682.38,681.22,0.29359091]
[1738045896749,1.09456444,682.39,681.22,0.29359091]
[1738045897047,0.24222565,682.38,681.22,0.29359091]
[1738045897949,1.09456444,682.37,681.22,0.29359091]
[1738045898150,0.24222565,682.36,681.22,0.29359091]
[1738045899551,1.09456444,682.37,681.22,0.29359091]
[1738045899750,0.24224968,682.36,681.22,0.29359091]
[1738045901048,0.24224968,682.35,681.22,0.29359091]
[1738045901249,0.24224968,682.39,681.22,0.29359091]
[1738045901454,0.24224968,682.38,681.22,0.29359091]
[1738045901752,0.24224968,682.39,681.22,0.29359091]
[1738045901951,0.24224968,682.38,681.22,0.29359091]
[1738045902146,0.24224968,682.39,681.22,0.29359091]
[1738045903152,0.24222479,682.38,681.22,0.29359091]
[1738045903345,0.24222479,682.39,681.22,0.29359091]
[1738045903552,0.24222479,682.38,681.22,0.29359091]
[1738045903851,0.24222479,682.37,681.22,0.29359091]
[1738045904051,0.24222479,682.36,681.22,0.29359091]
[1738045904253,0.24222479,682.47,681.22,0.29359091]
[1738045904452,0.24222479,682.46,681.22,0.29359091]
[1738045904647,0.24222479,682.45,681.22,0.29359091]
[1738045904847,0.24222479,682.44,681.22,0.29359091]
[1738045905045,0.24222479,682.47,681.22,0.29359091]
[1738045906552,0.29305746,682.46,681.22,0.29359091]
[1738045906949,0.24220819,682.45,681.22,0.29359091]
[1738045907151,0.29306605,682.44,681.22,0.29359091]
[1738045907346,0.24220819,682.43,681.22,0.29359091]
[1738045912156,0.29306605,682.44,681.22,0.29359091]
[1738045912354,0.24218663,682.43,681.22,0.29359091]
[1738045914157,0.29306605,682.44,681.22,0.29359091]
[1738045914357,0.24219084,682.43,681.22,0.29359091]
[1738045915657,1.09569489,682.2,681.22,0.29359091]
[1738045918656,1.09569489,682.18,681.22,0.29359091]
[1738045921863,1.09569489,682.12,681.22,0.29359091]
[1738045925462,1.09569489,682.1,681.22,0.29359091]
[1738045928666,1.09569489,682.16,681.22,0.29359091]
[1738045935268,1.09569489,682.11,681.22,0.29359091]
[1738045937770,1.09569489,682.12,681.22,0.29359091]
[1738045944672,0.74068048,682.43,681.22,0.29359091]
[1738045944673,1.09569489,682.17,681.22,0.29359091]
[1738045947875,1.09569489,682.15,681.22,0.29359091]
[1738045950176,1.09569489,682.13,681.22,0.29359091]
[1738045952677,0.24203971,682.12,681.22,0.29359091]
[1738045953279,1.09569489,682.13,681.22,0.29359091]
[1738045953675,1.09569489,682.05,681.22,0.29359091]
[1738045956984,1.09569489,682.1,681.22,0.29359091]
[1738045960988,0.29306605,682.44,681.22,0.29359091]
[1738045960989,1.09569489,682.13,681.22,0.29359091]
[1738045963083,0.24206129,682.12,681.22,0.29359091]
[1738045963684,0.24206129,682.15,681.22,0.29359091]
[1738045963889,0.24206129,682.14,681.22,0.29359091]
[1738045964087,0.24206129,682.15,681.22,0.29359091]
[1738045964384,0.24206129,682.14,681.22,0.29359091]
[1738045964590,0.24206129,682.13,681.22,0.29359091]
[1738045964790,0.24206129,682.12,681.22,0.29359091]
[1738045964986,0.24206129,682.15,681.22,0.29359091]
[1738045965184,0.24206129,682.14,681.22,0.29359091]
[1738045965389,0.24206129,682.15,681.22,0.29359091]
[1738045967592,1.09569489,682.01,681.22,0.29359091]
[1738045967789,0.24206129,682.0,681.22,0.29359091]
[1738045971995,1.09569489,682.01,681.22,0.29359091]
[1738045972197,0.24207266,682.0,681.22,0.29359091]
[1738045973697,0.24207266,681.99,681.22,0.29359091]
[1738045973896,0.24207266,682.02,681.22,0.29359091]
[1738045976097,1.33776755,682.02,681.22,0.29359091]
[1738045976289,0.24207266,682.01,681.22,0.29359091]
[1738045976691,1.09569489,682.02,681.22,0.29359091]
[1738045979194,5.25339732,689.83,681.22,0.29359091]
[1738045979195,1.09569489,682.12,681.22,0.29359091]
[1738045981893,0.24208345,682.11,681.22,0.29359091]
[1738045982193,0.24208345,682.11,680.78,1.09366971]
[1738045982395,1.09569489,682.12,680.79,0.29377634]
[1738045982599,0.2420702,682.11,680.79,1.82555076]
[1738045983400,0.24207236,682.1,680.79,1.82555076]
[1738045983697,0.24207236,682.09,680.79,1.82555076]
[1738045983899,0.24207236,682.11,680.79,1.82555076]
[1738045984401,1.09569489,682.08,680.79,1.82555076]
[1738045984700,1.09569489,682.08,680.8,0.26965289]
[1738045984892,1.09569489,682.08,680.81,0.29376771]
[1738045988194,1.09569489,682.06,680.81,0.29376771]
[1738045988895,0.24207517,682.05,680.82,0.26965586]
[1738045989499,0.24207517,682.05,680.83,0.29375908]
[1738045989702,0.24207517,682.05,680.84,0.26965586]
[1738045990295,0.24207517,682.05,680.85,0.29375045]
[1738045990499,0.24207517,682.05,680.86,0.26965586]
[1738045990800,0.24207517,682.05,680.86,0.563402]
[1738045991000,0.24207517,682.05,680.87,0.26965586]
[1738045992402,1.09569489,681.9,680.93,1.09366971]
[1738045992603,0.24207517,681.89,680.94,0.26965586]
[1738045992903,1.09569489,681.9,680.93,1.09366971]
[1738045994102,1.09569489,681.9,680.94,0.26965611]
[1738045994504,1.09569489,681.9,680.93,1.09366971]
[1738045994904,1.09569489,681.9,680.94,0.2696529]
[1738045996401,1.09569489,681.89,680.91,1.09366971]
[1738045999805,1.09569489,681.92,680.88,1.09366971]
[1738046004411,1.09569489,681.92,680.86,0.29374614]
[1738046004412,1.09569489,682.0,680.86,0.29374614]
[1738046006511,0.24204872,681.99,680.86,0.29374614]
[1738046007411,1.09569489,682.0,680.86,0.29374614]
[1738046007612,1.09569489,681.97,680.86,0.29374614]
[1738046011715,1.09569489,682.03,680.86,0.29374614]
[1738046011915,0.24204909,682.02,680.86,0.29374614]
[1738046014611,1.09569489,681.99,680.86,0.29374614]
[1738046017918,1.09569489,682.02,680.86,0.29374614]
[1738046019516,0.24202846,682.01,680.86,0.29374614]
[1738046021118,1.09569489,682.02,680.86,0.29374614]
[1738046021316,0.24203555,682.01,680.86,0.29374614]
[1738046023419,1.09569489,681.91,680.86,0.29374614]
[1738046026723,1.09569489,681.95,680.86,0.29374614]
[1738046029024,0.24207217,681.94,680.86,0.29374614]
[1738046029225,1.09569489,681.95,680.86,0.29374614]
[1738046029426,0.24207257,681.94,680.86,0.29374614]
[1738046030421,0.24207257,681.95,680.86,0.29374614]
[1738046030623,0.24207257,681.94,680.86,0.29374614]
[1738046030824,0.24207257,681.93,680.86,0.29374614]
[1738046031125,0.24207257,681.92,680.86,0.29374614]
[1738046031423,0.24207257,681.91,680.86,0.29374614]
[1738046031823,0.24207257,681.9,680.86,0.29374614]
[1738046032024,0.24207257,681.95,680.86,0.29374614]
[1738046032222,0.24207257,681.94,680.86,0.29374614]
[1738046032419,0.24207257,681.95,680.86,0.29374614]
[1738046032624,0.24207257,681.94,680.86,0.29374614]
[1738046032928,0.24207257,681.93,680.86,0.29374614]
[1738046033125,0.24207257,681.95,680.86,0.29374614]
[1738046033327,2.43639494,682.38,680.86,0.29374614]
[1738046033328,1.09569489,681.8,680.86,0.29374614]
[1738046033626,0.24207257,681.79,680.86,0.29374614]
[1738046033826,1.09569489,681.8,680.86,0.29374614]
[1738046034026,0.24205693,681.79,680.86,0.29374614]
[1738046035926,0.24205928,681.78,680.86,0.29374614]
[1738046036227,1.09569489,681.8,680.86,0.29374614]
[1738046036427,0.24206396,681.79,680.86,0.29374614]
[1738046037128,0.24206396,681.81,680.86,0.29374614]
[1738046037323,0.24206396,681.8,680.86,0.29374614]
[1738046037523,1.09569489,681.82,680.86,0.29374614]
[1738046037725,0.24208535,681.81,680.86,0.29374614]
[1738046039422,0.24211057,681.8,680.86,0.29374614]
[1738046039624,0.24211057,681.81,680.86,0.29374614]
[1738046039829,0.24211057,681.8,680.86,0.29374614]
[1738046040131,0.24211057,681.79,680.86,0.29374614]
[1738046040331,0.2420988,681.78,680.86,0.29374614]
[1738046040530,1.09569489,681.82,680.86,0.29374614]
[1738046040531,0.2420988,681.81,680.86,0.29374614]
[1738046040730,0.2420988,681.8,680.86,0.29374614]
[1738046040929,0.2420988,681.81,680.86,0.29374614]
[1738046041131,0.24209679,681.8,680.86,0.29374614]
[1738046041331,0.24209679,681.81,680.86,0.29374614]
[1738046041532,0.24209679,681.8,680.86,0.29374614]
[1738046041730,0.24209679,681.79,680.86,0.29374614]
[1738046041932,0.24209679,681.78,680.86,0.29374614]
[1738046042132,0.24209679,681.77,680.86,0.29374614]
[1738046042326,0.24209679,681.81,680.86,0.29374614]
[1738046042533,0.24209679,681.8,680.86,0.29374614]
[1738046042831,0.24209679,681.79,680.86,0.29374614]
[1738046043132,0.24209679,681.78,680.86,0.29374614]
[1738046043333,0.24209679,681.81,680.86,0.29374614]
[1738046043532,0.24209679,681.8,680.86,0.29374614]
[1738046043730,2.4350327,682.16,680.86,0.29374614]
[1738046043731,1.09569489,681.78,680.86,0.29374614]
[1738046043926,0.24209679,681.77,680.86,0.29374614]
[1738046044331,1.09569489,681.78,680.86,0.29374614]
[1738046044526,0.24206707,681.76,680.86,0.29374614]
[1738046044727,0.24206707,681.75,680.86,0.29374614]
[1738046045026,0.24206707,681.74,680.86,0.29374614]
[1738046045225,0.24206707,681.77,680.86,0.29374614]
[1738046045426,0.24206707,681.76,680.86,0.29374614]
[1738046045734,0.24206707,681.75,680.86,0.29374614]
[1738046045933,0.24206707,681.77,680.86,0.29374614]
[1738046046233,0.24206707,681.76,680.86,0.29374614]
[1738046046428,0.24206707,681.75,680.86,0.29374614]
[1738046046632,0.24206707,681.74,680.86,0.29374614]
[1738046046833,0.24206707,681.73,680.86,0.29374614]
[1738046048031,1.09569489,681.74,680.86,0.29374614]
[1738046048249,0.24203253,681.73,680.86,0.29374614]
[1738046048730,1.09569489,681.74,680.86,0.29374614]
[1738046050137,5.25339732,689.51,680.86,0.29374614]
[1738046050138,1.09569489,681.81,680.86,0.29374614]
[1738046050335,0.2420261,681.8,680.86,0.29374614]
[1738046051137,1.09569489,681.81,680.86,0.29374614]
[1738046055141,1.09569489,682.04,680.86,0.29374614]
[1738046055537,0.24202325,682.03,680.86,0.29374614]
[1738046055740,0.29324653,682.02,680.86,0.29374614]
[1738046055944,0.24202325,682.01,680.86,0.29374614]
[1738046056143,0.53527408,682.01,680.86,0.29374614]
[1738046056344,0.24202325,682.0,680.86,0.29374614]
[1738046059045,0.29325083,682.01,680.86,0.29374614]
[1738046059239,1.09569489,681.97,680.86,0.29374614]
[1738046061046,0.24202563,681.96,680.86,0.29374614]
[1738046062842,1.09569489,681.88,680.86,0.29374614]
[1738046063042,0.24202563,681.87,680.86,0.29374614]
[1738046065745,1.09569489,681.63,680.86,0.29374614]
[1738046071948,1.09569489,681.74,680.86,0.29374614]
[1738046074754,1.09569489,681.71,680.86,0.29374614]
[1738046077750,1.09569489,681.72,680.86,0.29374614]
[1738046079560,0.24202256,681.71,680.86,0.29374614]
[1738046080554,1.09569489,681.73,680.86,0.29374614]
[1738046081360,1.09569489,681.73,680.69,1.53238709]
[1738046084459,1.38781527,682.01,680.69,1.53238709]
[1738046084460,1.09569489,681.7,680.69,1.53238709]
[1738046093166,0.24200391,681.69,680.69,1.53238709]
[1738046095469,1.09569489,681.7,680.47,1.09366971]
[1738046096062,1.09569489,681.7,672.55,8.78430918]
[1738046096063,1.09569489,681.62,680.53,1.09366971]
[1738046098069,1.09569489,681.62,680.54,1.5327358]
[1738046099073,1.09569489,681.64,680.54,1.5327358]
[1738046102572,0.24194063,681.63,680.54,1.5327358]
[1738046114779,1.09569489,681.52,680.54,1.5327358]
[1738046117783,0.24194063,681.63,680.54,1.5327358]
[1738046121181,0.24194063,681.65,680.54,1.5327358]
[1738046123977,1.09569489,681.64,680.54,1.5327358]
[1738046124182,0.24194063,681.63,680.54,1.5327358]
[1738046128485,1.09569489,681.51,680.54,1.5327358]
[1738046128785,0.24180763,681.5,680.54,1.5327358]
[1738046129380,0.24180902,681.49,680.54,1.5327358]
[1738046129684,0.24180902,681.48,680.54,1.5327358]
[1738046129883,0.24180902,681.5,680.54,1.5327358]
[1738046130482,0.24181029,681.49,680.54,1.5327358]
[1738046130682,0.24181029,681.5,680.54,1.5327358]
[1738046130880,0.24181029,681.49,680.54,1.5327358]
[1738046131079,0.24181029,681.48,680.54,1.5327358]
[1738046131279,0.24181029,681.47,680.54,1.5327358]
[1738046131477,0.24181029,681.5,680.54,1.5327358]
[1738046131683,0.24181029,681.49,680.54,1.5327358]
[1738046131884,1.09569489,681.39,680.54,1.5327358]
[1738046132284,0.24180115,681.38,680.21,1.09366971]
[1738046132485,1.09569489,681.39,680.22,0.29402252]
[1738046132686,0.24178669,681.38,680.22,0.29402252]
[1738046132886,0.24178669,681.38,680.22,1.82721976]
[1738046134785,1.09569489,681.34,680.23,0.26991241]
[1738046135886,0.24178549,681.33,680.22,1.82721976]
[1738046136684,1.09569489,681.34,680.23,0.2699106]
[1738046137492,0.24177179,681.33,680.23,0.2699106]
[1738046137793,1.09569489,681.34,680.23,0.2699106]
[1738046137994,1.09569489,681.32,680.23,0.2699106]
[1738046141295,1.09569489,681.33,680.23,0.2699106]
[1738046141694,1.09569489,681.33,680.22,1.82721976]
[1738046144899,1.09569489,681.41,680.22,1.82721976]
[1738046148402,1.09456444,681.67,680.22,1.82721976]
[1738046148403,1.09569489,681.42,680.22,1.82721976]
[1738046148707,0.24176766,681.41,680.22,1.82721976]
[1738046149304,1.09569489,681.42,680.22,1.82721976]
[1738046151806,1.09569489,681.45,680.22,1.82721976]
[1738046152004,0.2417358,681.44,680.22,1.82721976]
[1738046154710,1.09569489,681.4,680.22,1.82721976]
[1738046156710,0.24173667,681.39,680.22,1.82721976]
[1738046158409,0.24173667,681.4,680.22,1.82721976]
[1738046158704,1.09569489,681.41,680.22,1.82721976]
[1738046158705,0.24173667,681.39,680.22,1.82721976]
[1738046158908,0.24173667,681.38,680.22,1.82721976]
[1738046159102,0.24173667,681.4,680.22,1.82721976]
[1738046159301,0.24173667,681.39,680.22,1.82721976]
[1738046159502,0.24173667,681.38,680.22,1.82721976]
[1738046159708,0.24173667,681.37,680.22,1.82721976]
[1738046159910,0.24173667,681.36,680.22,1.82721976]
[1738046160108,1.09569489,681.41,680.22,1.82721976]
[1738046160311,0.24173779,681.4,680.22,1.82721976]
[1738046161310,1.09569489,681.35,680.22,1.82721976]
[1738046161703,1.09569489,681.35,680.22,0.29402252]
[1738046161908,0.24174105,681.34,680.22,0.29402252]
[1738046162110,0.24174105,681.34,680.22,1.82733235]
[1738046162305,0.24175975,681.33,680.22,1.82733235]
[1738046162512,0.24175975,681.32,680.22,1.82733235]
[1738046162709,0.24175975,681.34,680.22,1.82733235]
[1738046162908,0.24175975,681.33,680.22,1.82733235]
[1738046163112,1.09569489,681.35,680.22,1.82733235]
[1738046163113,0.24175975,681.32,680.22,1.82733235]
[1738046163312,0.24175975,681.34,680.22,1.82733235]
[1738046163606,0.24175975,681.33,680.22,1.82733235]
[1738046163811,1.09569489,681.35,680.22,1.82733235]
[1738046163812,0.24175975,681.34,680.22,1.82733235]
[1738046164012,1.09569489,681.21,680.22,1.82733235]
[1738046164310,0.24175975,681.2,680.22,1.82733235]
[1738046164710,0.24175975,681.2,680.23,0.26994844]
[1738046165212,0.24175975,681.2,680.22,1.82733235]
[1738046167213,1.09569489,681.18,680.22,1.82733235]
[1738046167413,0.24175975,681.17,680.22,1.82733235]
[1738046168511,1.09569489,681.18,680.22,1.82733235]
[1738046170614,1.09456444,681.37,680.22,1.82733235]
[1738046170615,1.09569489,681.17,680.22,1.82733235]
[1738046174419,1.09569489,681.26,680.22,1.82733235]
[1738046174714,0.24180326,681.25,680.22,1.82733235]
[1738046175120,1.09569489,681.26,680.22,1.82733235]
[1738046183319,1.09569489,681.22,680.22,1.82733235]
[1738046187633,1.09569489,681.15,680.22,1.82733235]
[1738046190729,1.09569489,681.18,680.22,1.82733235]
[1738046196239,1.09569489,681.15,680.22,1.82733235]
[1738046198937,1.09569489,681.13,680.22,1.82733235]
[1738046199639,1.09569489,681.13,680.23,0.26994628]
[1738046201040,1.09569489,681.13,680.22,1.82733235]
[1738046202443,1.09569489,681.13,680.23,0.26994696]
[1738046202743,1.09569489,681.05,680.27,1.09366971]
[1738046208545,1.09569489,681.05,680.22,0.29402252]
[1738046208546,1.09569489,681.04,680.25,1.09366971]
[1738046211849,1.09569489,681.25,680.22,0.29402252]
[1738046212444,0.24187207,681.24,680.22,0.29402252]
[1738046212944,0.24187207,681.24,679.76,1.09366971]
[1738046213149,0.24187207,681.24,679.77,0.56426022]
[1738046213345,0.24187207,681.24,679.78,0.56425589]
[1738046213650,0.24187207,681.24,679.79,0.56425156]
[1738046213949,0.24187207,681.24,679.8,0.56424723]
[1738046214149,0.24187207,681.24,679.81,0.5642429]
[1738046214350,0.24187207,681.24,679.82,0.56423858]
[1738046214650,1.09569489,681.18,679.83,0.56423425]
[1738046214951,1.09569489,681.18,679.7,1.09366971]
[1738046214952,0.24187207,681.17,679.84,0.56422992]
[1738046215148,0.24187207,681.17,679.85,0.27004306]
[1738046217752,1.09569489,681.08,679.85,0.27004306]
[1738046217950,0.24187207,681.07,679.85,0.27004306]
[1738046221158,0.24187207,681.06,679.85,0.27004306]
[1738046221358,0.24187207,681.05,679.85,0.27004306]
[1738046221560,0.24187207,681.12,679.85,0.27004306]
[1738046221758,0.24187207,681.11,679.85,0.27004306]
[1738046221958,0.24187207,681.1,679.85,0.27004306]
[1738046222159,0.24187207,681.09,679.85,0.27004306]
[1738046222359,1.09569489,681.13,679.84,0.29418686]
[1738046222558,0.24179383,681.12,679.85,0.270039]
[1738046224658,0.24179383,681.15,679.85,0.270039]
[1738046224959,1.09569489,681.16,679.85,0.270039]
[1738046224960,0.24179383,681.14,679.86,1.53397445]
[1738046225161,0.24179383,681.15,679.87,0.270039]
[1738046227265,1.09569489,681.09,679.87,0.270039]
[1738046227459,0.24179383,681.08,679.87,0.270039]
[1738046229768,1.09569489,681.09,679.86,1.53397445]
[1738046229963,0.24172739,681.08,679.87,0.2700492]
[1738046230866,1.09569489,681.07,679.87,0.2700492]
[1738046231069,0.24172739,681.06,679.87,0.2700492]
[1738046233866,1.09569489,681.07,679.86,1.53397445]
[1738046234261,1.09569489,681.08,679.86,1.53397445]
[1738046234766,0.24167022,681.07,679.86,1.53397445]
[1738046238274,1.09569489,681.17,679.86,1.53397445]
[1738046238474,0.24167399,681.16,679.86,1.53397445]
[1738046240873,0.29362108,681.15,679.86,1.53397445]
[1738046241073,0.24167399,681.14,679.86,1.53397445]
[1738046241373,0.2936297,681.13,679.86,1.53397445]
[1738046241575,0.24167399,681.12,679.86,1.53397445]
[1738046241874,0.29363832,681.11,679.86,1.53397445]
[1738046242076,0.24167399,681.1,679.86,1.53397445]
[1738046242277,0.29364694,681.09,679.86,1.53397445]
[1738046242476,0.24167399,681.08,679.86,1.53397445]
[1738046242675,0.29365557,681.07,679.86,1.53397445]
[1738046242872,0.24167399,681.06,679.86,1.53397445]
[1738046243778,0.24170271,681.05,679.86,1.53397445]
[1738046243978,0.24170271,681.06,679.86,1.53397445]
[1738046244174,0.24170271,681.05,679.86,1.53397445]
[1738046244372,0.24170271,681.06,679.86,1.53397445]
[1738046244578,0.24170271,681.05,679.86,1.53397445]
[1738046244780,0.24170271,681.06,679.86,1.53397445]
[1738046244976,0.24170271,681.05,679.86,1.53397445]
[1738046247286,1.09569489,680.82,679.86,1.53397445]
[1738046247583,0.24170271,680.81,679.86,1.53397445]
[1738046248085,1.09569489,680.82,679.86,1.53397445]
[1738046250183,1.09569489,680.88,679.86,1.53397445]
[1738046252780,1.09569489,681.02,679.86,1.53397445]
[1738046252981,0.24179145,681.01,679.86,1.53397445]
[1738046255288,1.09569489,681.02,679.86,1.53397445]
[1738046255588,0.24175847,681.01,679.86,1.53397445]
[1738046255781,0.24175847,681.02,679.86,1.53397445]
[1738046258389,1.09569489,681.01,679.86,1.53397445]
[1738046258590,0.24175847,681.0,679.86,1.53397445]